Cogmind - Beta 14 @@@ ROGUE MODE // 2024.11.26 @ 13:10:11 Player: skye Result: Destroyed by X-62 Marksman with Gauss Rifle Performance ------------- Evolutions (2) 1000 Regions Visited (5) 1000 Robots Destroyed (52) 260 Value Destroyed (1441) 1441 Prototype IDs (23) 460 Alien Tech Used (0) 0 Bonus (63) 63 TOTAL SCORE: 4224 Bonus ------- High Alert Combat Kills 63 Cogmind --------- Core Integrity 0/550 Matter 123/300 Energy 265/265 System Corruption 1% Temperature Cool (36) Movement Treading (250) Ox1 Location -8/Materials Parts ------- > --- POWER (1) -------- Reinforced Ion Engine > --- PROPULSION (3) --- Armored Treads > --- UTILITY (5) ------ Medium Storage Unit Trap Reconfigurator > --- WEAPON (2) ------- Improved Light Cannon > --- INVENTORY (10) --- Light Deuterium Engine Xenon Bombardment Thruster Xenon Bombardment Thruster Xenon Bombardment Thruster Xenon Bombardment Thruster Makeshift Sensor Array Improved Signal Interpreter Makeshift Cloaking Device Hacking Suite Hacking Suite Peak State ------------ > --- POWER ------------ Reinforced Ion Engine > --- PROPULSION ------- Armored Treads Armored Treads Advanced Treads > --- UTILITY ---------- Advanced Heat Sink Medium Storage Unit Improved Weapon Shielding Improved Light Armor Plating Trap Reconfigurator > --- WEAPON ----------- Improved Light Cannon Grenade Launcher > --- INVENTORY -------- Light Nuclear Core Xenon Bombardment Thruster Xenon Bombardment Thruster Xenon Bombardment Thruster Xenon Bombardment Thruster Makeshift Sensor Array Improved Signal Interpreter Makeshift Cloaking Device Hacking Suite Hacking Suite [Rating: 39] Favorites ----------- Power Light Ion Engine Engine Light Ion Engine Propulsion Light Treads Treads Light Treads Leg Aluminum Leg Wheel Wheel Utility Medium Storage Unit Device Trap Reconfigurator Storage Medium Storage Unit Protection Light Armor Plating Weapon Assault Rifle Energy Gun Particle Gun Ballistic Gun Assault Rifle Ballistic Cannon Improved Light Cannon Launcher Grenade Launcher Special Weapon Mining Laser Build | -11 -10 -10 -10 -9 -8 ------- Run | Yrd Mat Min Exi Min Mat Slots Evolved 4 | . . . . . 4 Power . | . . . . . . Propulsion 1 | . . . . . 1 Utility 3 | . . . . . 3 Weapon . | . . . . . . Parts Attached 39 | 2 9 . 2 4 22 Power 5 | . 3 . . 1 1 Engine 5 | . 3 . . 1 1 Core . | . . . . . . Reactor . | . . . . . . Propulsion 10 | 2 . . 1 . 7 Treads 9 | 2 . . . . 7 Leg . | . . . . . . Wheel 1 | . . . 1 . . Hover . | . . . . . . Flight . | . . . . . . Utility 12 | . 3 . . 1 8 Device 6 | . . . . 1 5 Storage 1 | . 1 . . . . Processor . | . . . . . . Hackware . | . . . . . . Protection 5 | . 2 . . . 3 Artifact . | . . . . . . Weapon 12 | . 3 . 1 2 6 Energy Gun 3 | . 1 . . 1 1 Energy Cannon . | . . . . . . Ballistic Gun 6 | . 2 . 1 . 3 Ballistic Cannon 1 | . . . . . 1 Launcher 1 | . . . . . 1 Special Weapon 1 | . . . . 1 . Impact Weapon . | . . . . . . Slashing Weapon . | . . . . . . Piercing Weapon . | . . . . . . Special Melee Weapon . | . . . . . . Unidentified Prototypes . | . . . . . . Parts Lost 15 | . . . . 2 13 Power 2 | . . . . 1 1 Propulsion 5 | . . . . . 5 Utility 6 | . . . . 1 5 Weapon 2 | . . . . . 2 Highest Loss Streak 6 | . . . . 1 6 To Critical Strikes . | . . . . . . Average Slot Usage (%) 93 | . 94 100 100 99 83 Engine 12 | . 14 14 14 14 8 Treads 22 | . 28 28 20 14 18 Wheel 3 | . . . 7 14 . Device 5 | . . . . 5 17 Storage 12 | . 14 14 14 14 9 Protection 10 | . 8 14 14 7 11 Energy Gun 9 | . 11 14 14 13 1 Ballistic Gun 12 | . 16 14 14 14 4 Ballistic Cannon 1 | . . . . . 4 Launcher 1 | . . . . . 6 Peak Build Rating 39 | 6 9 9 11 11 39 Average Rating 15 | 5 8 9 9 10 30 On Entrance 8 | 6 6 9 9 11 11 Naked Turns . | . . . . . . Heaviest Build 34 | 14 23 21 21 23 34 Greatest Support 62 | 40 40 40 40 10 62 Greatest Overweight (x) 9 | . . . 2 2 9 Average Overweight (x) . | . . . 1 1 . Largest Inventory Capacity 10 | 8 10 10 10 10 10 Average Capacity 9 | 8 9 10 10 10 10 Most Carried 10 | 7 10 10 10 10 10 Average Carried 9 | 5 9 10 9 9 9 Final Capacity 10 | 8 10 10 10 10 10 Final Carried 10 | 4 10 10 10 10 10 Class Distribution -------------------- 96% | Mutant Dominant Class ---------------- Mutant | -10/Materials Mutant | -10/Mines Mutant | -10/Exiles Mutant | -9/Mines Mutant | -8/Materials Resources | -11 -10 -10 -10 -9 -8 ----------- Run | Yrd Mat Min Exi Min Mat Matter Collected 1170 | 200 262 29 . 104 575 Remotely 30 | . . . . . 30 Salvage Created 1553 | . 394 38 . 269 852 Parts 89 | . 24 4 . 14 47 Haulers Intercepted 4 | . . . . . 4 Recyclers Shooed 1 | . . . . . 1 Parts Field Recycled . | . . . . . . Retrieved Matter . | . . . . . . Parts Self-Destructed . | . . . . . . Prevented . | . . . . . . Kills | -11 -10 -10 -10 -9 -8 ------- Run | Yrd Mat Min Exi Min Mat Combat Hostiles Destroyed 41 | . 13 3 . 7 18 Guns 28 | . 13 3 . 7 5 Cannons 11 | . . . . . 11 AOE 2 | . . . . . 2 Classes Destroyed 14 | . 4 . . 2 8 Worker 3 | . . . . . 3 Builder 1 | . . . . . 1 Tunneler 1 | . . . . . 1 Hauler 4 | . . . . . 4 Recycler 1 | . 1 . . . . Operator 2 | . 2 . . . . Swarmer 11 | . 8 3 . . . Grunt 19 | . 5 . . 5 9 Brawler 3 | . . . . 1 2 Duelist 1 | . . . . . 1 Sentry 4 | . . . . . 4 Specialist 1 | . . . . . 1 Heavy 1 | . . . . . 1 Assembled 1 | . . . . 1 . Best Kill Streak 4 | . 3 3 . 3 4 Combat Bots Only 3 | . 3 3 . 3 3 Max Kills in Single Turn 2 | . 1 1 . 1 2 Gunslinging . | . . . . . . Exploded 1 | . . . . . 1 Melee . | . . . . . . Uniques/NPCs Destroyed . | . . . . . . Combat | -11 -10 -10 -10 -9 -8 -------- Run | Yrd Mat Min Exi Min Mat Hostile Shots Fired 275 | . 82 10 . 25 158 Missed 68 | . 26 2 . 6 34 Damage Taken 3315 | . 509 67 . 290 2449 Core 647 | . 53 . . 42 552 Absorbed by Shields . | . . . . . . Redirected to Shielding 111 | . . . . . 111 Regen/Repaired (Parts) 96 | . 96 . . . . Core Remaining (%) 81 | 100 . . . 62 . Volleys Fired 218 | . 55 4 . 20 139 Largest 2 | . 2 2 . 2 2 Hottest 100 | . 85 85 . 100 85 Shots Fired 308 | . 110 8 . 38 152 Gun 228 | . 110 8 . 36 74 Cannon 69 | . . . . . 69 Launcher 9 | . . . . . 9 Special 2 | . . . . 2 . Kinetic 223 | . 70 4 . 18 131 Thermal 76 | . 40 4 . 20 12 Explosive 9 | . . . . . 9 Electromagnetic . | . . . . . . Robot Hit Streak 18 | . 9 3 . 6 18 Robot Miss Streak 7 | . 7 4 . 3 7 Penetration Max . | . . . . . . Secondary Targets 5 | . . 1 . 2 2 Max Gunslinging Chain 1 | . . 1 . 1 1 Shots Hit Robots 194 | . 59 3 . 21 111 Core Hits 86 | . 21 3 . 11 51 Critical Kills . | . . . . . . Critical Parts Destroyed 1 | . 1 . . . . Critical Strikes 7 | . 1 . . . 6 Destroy 1 | . 1 . . . . Blast 6 | . . . . . 6 Melee Attacks . | . . . . . . Impact . | . . . . . . Slashing . | . . . . . . Piercing . | . . . . . . Sneak Attacks . | . . . . . . Combat Hostiles . | . . . . . . Follow-up Attacks . | . . . . . . Damage Inflicted 3797 | . 907 58 . 315 2517 Guns 2105 | . 874 58 . 315 858 Cannons 1100 | . . . . . 1100 Explosions 559 | . . . . . 559 Melee . | . . . . . . Ramming 33 | . 33 . . . . Kinetic 2491 | . 530 13 . 145 1803 Thermal 714 | . 344 45 . 170 155 Explosive 559 | . . . . . 559 Electromagnetic . | . . . . . . Impact . | . . . . . . Slashing . | . . . . . . Piercing . | . . . . . . Highest Corruption 1 | . . . . . 1 Average Corruption 1 | . . . . . 1 Corruption Purged . | . . . . . . Corruption Blocked . | . . . . . . Effects 8 | . . . . . 8 Message Errors 1 | . . . . . 1 Matter Fused 1 | . . . . . 1 Heat Flow Errors 1 | . . . . . 1 Energy Discharges 3 | . . . . . 3 Parts Rejected 1 | . . . . . 1 Misfires 1 | . . . . . 1 Overload Shots . | . . . . . . Overflow Damage 4 | . . . . . 4 Projectiles . | . . . . . . Explosions 4 | . . . . . 4 Melee . | . . . . . . Knockbacks 12 | . . . . . 12 Impact . | . . . . . . Kinetic 11 | . . . . . 11 Secondary 1 | . . . . . 1 Self-Inflicted Damage 87 | . . . . . 87 Shots 4 | . . . . . 4 Rammed 12 | . 12 . . . . Targets Rammed 13 | . 13 . . . . Kicked . | . . . . . . Crushed 1 | . 1 . . . . Highest Temperature 422 | . 240 132 . 422 241 Average Temperature 104 | . 82 67 . 190 37 Received Heat Transfer 1035 | . 90 . . 99 846 Effects 1 | . . . . 1 . Energy Bleed 1 | . . . . 1 . Siege Activations . | . . . . . . Robots Corrupted . | . . . . . . Combat Hostiles . | . . . . . . Parts Fried . | . . . . . . Impact Corruptions . | . . . . . . Robots Melted . | . . . . . . Combat Hostiles . | . . . . . . Parts Melted 1 | . . 1 . . . Heat Transferred 1702 | . 814 111 . 407 370 Parts Sabotaged . | . . . . . . Parts Stolen . | . . . . . . Parts Stripped . | . . . . . . Power Chain Reactions . | . . . . . . Alert | -11 -10 -10 -10 -9 -8 ------- Run | Yrd Mat Min Exi Min Mat Peak Influence 546 | . 207 83 . 140 546 Initial 13 | . . 13 . . . Average 104 | . 67 81 . 77 170 Maximum Alert Level 2 | . 1 . . . 2 Low Security (%) 88 | 100 97 100 . 100 68 Level 1 4 | . 2 . . . 9 Level 2 7 | . . . . . 21 Level 3 . | . . . . . . Level 4 . | . . . . . . Level 5 . | . . . . . . High Security . | . . . . . . Max Security . | . . . . . . Squads Dispatched 5 | . 1 . . . 4 Investigation . | . . . . . . Extermination . | . . . . . . Reinforcement 5 | . 1 . . . 4 Assault . | . . . . . . Garrison . | . . . . . . Intercept . | . . . . . . Searches Triggered . | . . . . . . Construction Impeded 1 | . . . . . 1 Haulers Reinforced . | . . . . . . Active Scanning Responses . | . . . . . . Cargo Convoy Interrupts . | . . . . . . Stealth | -11 -10 -10 -10 -9 -8 --------- Run | Yrd Mat Min Exi Min Mat Distress Signals 5 | . 1 . . 2 2 Communications Jammed . | . . . . . . Distress Signals . | . . . . . . Times Spotted 69 | . 25 3 . 7 34 Peak Tracking Total 8 | . 4 3 . 3 8 Tactical Retreats 3 | . 2 . . . 1 Traps | -11 -10 -10 -10 -9 -8 ------- Run | Yrd Mat Min Exi Min Mat Traps Triggered 1 | . . . . . 1 Indirectly . | . . . . . . Trap Hack Attempts . | . . . . . . Triggered . | . . . . . . Disarmed . | . . . . . . Reprogrammed . | . . . . . . Reused 1 | . . . . . 1 Traps Reconfigurated 1 | . . . . . 1 Traps Extracted . | . . . . . . Installed . | . . . . . . Triggered 1 | . . . . . 1 Machines | -11 -10 -10 -10 -9 -8 ---------- Run | Yrd Mat Min Exi Min Mat Machines Disabled 2 | . 1 . . . 1 Max in Single Turn 1 | . 1 . . . 1 Machines Repaired . | . . . . . . Machines Dismantled . | . . . . . . Machines Sabotaged . | . . . . . . Overloaded Fab Kills . | . . . . . . Hacking | -11 -10 -10 -10 -9 -8 --------- Run | Yrd Mat Min Exi Min Mat Machines Accessed 13 | . 7 . 2 . 4 Terminals 9 | . 5 . . . 4 Fabricators . | . . . . . . Repair Stations 1 | . 1 . . . . Recycling Units 1 | . 1 . . . . Scanalyzers . | . . . . . . Garrison Access . | . . . . . . Total Hacks 45 | . 18 . 7 . 20 Successful 31 | . 13 . 7 . 11 Failed 14 | . 5 . . . 9 Catastrophic 1 | . . . . . 1 Database Lockouts . | . . . . . . Manual 34 | . 13 . 1 . 20 Terminals 31 | . 11 . . . 20 Fabricators . | . . . . . . Repair Stations 4 | . 4 . . . . Recycling Units 3 | . 3 . . . . Scanalyzers . | . . . . . . Garrison Access . | . . . . . . Terminal Hacks 16 | . 2 . 7 . 7 Record 6 | . . . 6 . . Level Access Points 1 | . . . . . 1 Terminal Index 2 | . 1 . . . 1 Alert Level 1 | . . . . . 1 Unreport Threat 1 | . . . . . 1 Locate Traps 2 | . 1 . . . 1 Hauler Manifests 1 | . . . . . 1 Zone Layout 1 | . . . . . 1 Derelict Proto ID Bank 1 | . . . 1 . . Fabricator Hacks . | . . . . . . Repair Station Hacks 4 | . 4 . . . . Scan Component 2 | . 2 . . . . Repair 2 | . 2 . . . . Recycling Unit Hacks 1 | . 1 . . . . Report Inventory 1 | . 1 . . . . Scanalyzer . | . . . . . . Garrison Access Hacks . | . . . . . . Unauthorized Hacks 10 | . 6 . . . 4 Terminals 8 | . 4 . . . 4 Botnet 8 | . 4 . . . 4 Fabricators . | . . . . . . Repair Stations . | . . . . . . Recycling Units 2 | . 2 . . . . Monitor 1 | . 1 . . . . Reject 1 | . 1 . . . . Scanalyzers . | . . . . . . Garrison Access . | . . . . . . Data Cores Recovered 1 | . 1 . . . . Used . | . . . . . . Hacking Detections 9 | . 6 . . . 3 Full Trace Events . | . . . . . . Feedback Events . | . . . . . . Feedback Blocked . | . . . . . . Robot Schematics Acquired . | . . . . . . Robots Built . | . . . . . . Authchips . | . . . . . . Time . | . . . . . . Total Robot Build Rating . | . . . . . . Part Schematics Acquired . | . . . . . . Parts Built . | . . . . . . Authchips . | . . . . . . Time . | . . . . . . Total Part Build Rating . | . . . . . . Parts Repaired 2 | . 2 . . . . Time 52 | . 52 . . . . Parts Recycled . | . . . . . . Recycled Matter . | . . . . . . Retrieved Matter . | . . . . . . Retrieved Components . | . . . . . . Parts Scanalyzed . | . . . . . . Part Schematics Acquired . | . . . . . . Parts Damaged . | . . . . . . Bothacking | -11 -10 -10 -10 -9 -8 ------------ Run | Yrd Mat Min Exi Min Mat Used RIF Installer . | . . . . . . Robots Hacked . | . . . . . . Non-combat . | . . . . . . Combat . | . . . . . . Robot Hacks Applied . | . . . . . . Relay Couplers Released . | . . . . . . Fabnet Peak Effective % . | . . . . . . Robots Rewired 3 | . . . 3 . . Allies Hacked . | . . . . . . Hacks Repelled . | . . . . . . Allies | -11 -10 -10 -10 -9 -8 -------- Run | Yrd Mat Min Exi Min Mat Total Allies 6 | . . . 3 3 . Largest Group 6 | . . . 3 6 . Highest-Rated Group 64 | . . . 24 64 . Highest-Rated Ally 16 | . . . 8 16 . Total Orders . | . . . . . . Ally Attacks 15 | . . . . 15 . Total Damage 150 | . . . . 150 . Kills 1 | . . . . 1 . Allies Corrupted . | . . . . . . Allies Melted . | . . . . . . Intel | -11 -10 -10 -10 -9 -8 ------- Run | Yrd Mat Min Exi Min Mat Robot Analysis Total . | . . . . . . Derelict Logs Recovered 1 | . . . . 1 . Drone Launches . | . . . . . . Drone Recoveries . | . . . . . . Exploration | -11 -10 -10 -10 -9 -8 ------------- Run | Yrd Mat Min Exi Min Mat Turns Passed 3813 | 6 1334 275 710 433 1055 Spaces Moved 2039 | 2 660 165 527 316 369 Core 13 | . . . . . 13 Treads 1368 | 2 660 165 193 . 348 Legs . | . . . . . . Wheels 658 | . . . 334 316 8 Hover . | . . . . . . Flight . | . . . . . . Fastest Speed 95 | 160 160 160 110 95 110 Average Speed 149 | 160 160 160 128 109 192 Slowest Speed 500 | 160 160 160 160 110 500 Overloaded Moves . | . . . . . . Propulsion Burnouts . | . . . . . . Robots Hopped . | . . . . . . Cave-ins Triggered . | . . . . . . Exploration Rate (%) 54 | 2 74 47 91 72 40 Regions Visited 5 Branch Regions 3 Pre-discovered Areas . | . . . . . . Known Exits Taken . | . . . . . . Unknown Exits Taken 5 | 1 1 1 1 1 . Scrap Searched 3 | . . . . 3 . Spaces Dug 2 | . . . . 2 . Terrain Destroyed 55 | . . . . 2 53 Melee . | . . . . . . Projectile 4 | . . . . 2 2 AOE 51 | . . . . . 51 Terrain Rammed . | . . . . . . Walls Destroyed . | . . . . . . Machines Disabled . | . . . . . . Actions | -11 -10 -10 -10 -9 -8 --------- Run | Yrd Mat Min Exi Min Mat Total 2486 | 7 824 168 561 360 566 Wait 104 | . 67 . 3 20 14 Move 2034 | 1 659 164 526 315 369 Hop . | . . . . . . Pick Up 23 | . 11 . 3 1 8 Fast Attach 16 | . 3 . . 1 12 Attach 5 | 2 1 . . 1 1 Detach 3 | 2 1 . . . . Swap 18 | . 5 . 2 2 9 Drop 28 | 2 9 . 3 . 14 Fire 218 | . 55 4 . 20 139 Melee . | . . . . . . Ram . | . . . . . . Kick . | . . . . . . Crush 13 | . 13 . . . . Escape Stasis . | . . . . . . Rewire 24 | . . . 24 . . Trap . | . . . . . . Miscellaneous . | . . . . . . Route ------- -11/Scrapyard -10/Materials (discovered 5 exits: [*Mat x3] / [*Min x2]) -10/Mines (discovered 2 exits: [*Mat] / *Exi) -10/Exiles (discovered 2 exits: [*Min x2]) -9/Mines (discovered 2 exits: *Mat x2) -8/Materials (discovered 3 exits: *Fac x3) History --------- Turn | Location | Event 5 | -11/Scrapyard | Discovered new exit (range 1) 7 | -11/Scrapyard | Entered Materials 33 | -10/Materials | Discovered new exit (range 16) 300 | -10/Materials | Discovered new exit (range 12) 316 | -10/Materials | Build established: Mutant 415 | -10/Materials | Discovered new exit (range 15) 610 | -10/Materials | Discovered new exit (range 5) 654 | -10/Materials | Repaired Assault Rifle 1000 | -10/Materials | Discovered new exit (range 10) 1112 | -10/Materials | Repaired Lgt. Armor Plating 1341 | -10/Materials | Entered Mines 1443 | -10/Mines | Discovered new exit (range 9) 1608 | -10/Mines | Deemed a non-threat by the Exiles lab entrance 1609 | -10/Mines | Discovered new exit (range 5) 1616 | -10/Mines | Entered Exiles 1616 | -10/Exiles | Found Exiles lab destroyed 1701 | -10/Exiles | Discovered new exit (range 15) 1936 | -10/Exiles | Opened EX-Vault 1946 | -10/Exiles | Found Trap Reconfigurator 2311 | -10/Exiles | Discovered new exit (range 14) 2326 | -10/Exiles | Entered Mines 2326 | -9/Mines | Accompanied by 3 allies 2379 | -9/Mines | Discovered new exit (range 8) 2472 | -9/Mines | Learned 4 Materials zone layouts 2555 | -9/Mines | Discovered new exit (range 7) 2589 | -9/Mines | Assisted by bots powering up and referring to "LRC-V3" 2684 | -9/Mines | Assembled infested the area 2730 | -9/Mines | Lost 6 allies 2759 | -9/Mines | Entered Materials 2759 | -8/Materials | Evolved 4 slots: Propulsion x1, Utility x3 2841 | -8/Materials | Lost 5 parts (1p2n1u1w) 3607 | -8/Materials | Core integrity fell below 50% 3749 | -8/Materials | Identified exit to Factory 3799 | -8/Materials | Core integrity fell below 20% 3814 | -8/Materials | Destroyed by X-62 Marksman with Gauss Rifle Last Messages --------------- 03791_ Critical hit (Burn: +37). 03793_ U-05 Engineer destroyed. 03794_ Slug penetrates Wall. 03795_ X-62 Marksman destroyed. 03796_ Imp. Weapon Shielding destroyed. 03797_ Grenade Launcher destroyed. 03797_ Destroyed Grenade Launcher. 03797_ Slug penetrates Earth. 03799_ The unstable cave ceiling collapses. 03800_ Penetrated by Slug. 03804_ Adv. Treads destroyed. 03804_ Imp. Light Armor Plating destroyed. 03806_ Adv. Heat Sink destroyed. 03806_ Penetrated by Slug. 03809_ H-61 Shepherd destroyed. 03810_ The unstable cave ceiling collapses. 03811_ G-47 Trooper knocked back. 03811_ Penetrated by Slug. 03812_ Arm. Treads destroyed. 03814_ Penetrated by Slug. Map ----- +----------------------------------------------------+ | ?????# # """"" """"" #??????????????????? | | # # #??????????????????? | | " / + [ #??????????????????? | | "" # ####+###########?????????????????? | | "" # #??# # #?????????????????? | | "" / #??# # #?????????????????? | | " # #??# #=! #?????????????????? | | ?# #??# #! ! #?????????????????? | | +##??# #??# #####+#####?????????????????? | | ##### #??# =%*! !=#??????????????????? | | #??#######T## #??????????????????? | | #????????#### #??????????????????? | | #???????????# #??????????????????? | | ########???????????# #??????????????????? | | #???????????????####[#??????????????????? | | #???????????????+ =%#??????????????????? | | #???????????????# !#??????????????????? | | #???????????#####+##%#??????????????????? | | #???????????# != # #??????##+##### ???? | | #???????????# """ #%#???#### + ???? | | +##???????????# *""" # ######## #????? | | ???????????# """ + w t#????? | | """ ?????????#] ###;# #????? | | """" #????????# # % # #????? | | """" #????????######### % #????? | | """" #???????# @ #????? | | """ #???????????###### #????? | | ????????????????????? +####+#????? | | ??????????????????? #%gx #????? | | ????????????????? """ gg #????? | | ???????????????# """ % # #????? | | ???????????????# """ %[ " #????? | | ???????????????#???""" =! " #????? | | ???????????????????""" # #????? | | ???????????????????? ## # ###????? | | ???????????????????? ?# # ??????? | | ????????????????????####?# +?""""" ?????? | | ?????????????????????????# #?"??????????? | | ?????????????????????????# #????????????? | | ?????????????????????????# #????????????? | | ?????????????????????????/ ?????????????? | | ?????????????????????????# ?????????????? | | ?????????????????????????? < ?????????????? | | ??????????????????????????????????????????? | | ??????????????????????????????????????????? | | ??????????????????????????????????????????? | | ??????????????????????????????????????????? | | ??????????????????????????????????????????? | | ??????????????????????????????????????????? | | ??????????????????????????????????????????? | +----------------------------------------------------+ Best States ------------- Heat Dissipation 50 Energy Generation 12 Energy Capacity 265 Matter Stores 300 Matter Capacity 300 Sight Range 16 Terrain Scan Density 10 Armor Coverage 150 Power Shielding 66 Weapon Shielding 66 Evasion (%) 41 Recoil Reduction 3 Item Schematics ----------------- None Robot Schematics ------------------ None Fabricated ------------ Nothing Alien Tech Used ----------------- None Achievements -------------- None Challenges ------------ None Game ------ Seed GravitonLinkedJammer Manual? 0 Play Time 00:32:12 Cumulative 71.1 hours Start 2024.11.26 @ 12:32:26 End 2024.11.26 @ 13:10:11 Sessions 1 Manual Loads 0 Difficulty Rogue Special Mode None Game No. 92 Rogue 48 Adventurer 44 Explorer 0 Win Type - Total 0 Types 0/0/0/0/0/0/0/0/0 Lore% 20 Gallery% 47 Achievement% 35 Wizard Run 0 Options --------- Layout 1 ASCII 0 Keyboard 1 Movement Vi Keybinds 0 Fullscreen 1 Font 24/Terminus Map View 50x40 Zoom Use 0% Tactical HUD 1 Map Filters NONE Filters NONE Steam 1 RUN: 29de1d75-362c-40f5-9dd5-89afd6f4e242